[Event "2026 Biel Blitz Open"]
[Site "Biel, CH"]
[Date "2026.07.19"]
[Round "7"]
[White "Hirzel, Robin"]
[Black "Materia, Matteo"]
[Result "1-0"]
[Board "29"]
[TimeControl "180+2"]
[WhiteFideId "1342320"]
[BlackFideId "45150575"]
[WhiteElo "2022"]
[BlackElo "1881"]
[WhiteClock "0:00:52"]
[BlackClock "0:00:11"]
[Variant "Standard"]
[EndDate "2026.07.19"]
[EndTime "13:56:53"]

1. e4 {[%clk 0:03:03]}  e5 {[%clk 0:03:02]} 2. Nc3 {[%clk 0:03:04]}  Nf6 {[%clk 0:03:02]} 3. f4 {[%clk 0:03:06]}  d5 {[%clk 0:03:00]}
4. fxe5 {[%clk 0:03:07]}  Nxe4 {[%clk 0:03:01]} 5. Qf3 {[%clk 0:03:08]}  Nxc3 {[%clk 0:03:01]} 6. dxc3 {[%clk 0:03:09]}  Qh4+ {[%clk 0:03:01]}
7. g3 {[%clk 0:03:10]}  Qe4+ {[%clk 0:03:03]} 8. Qxe4 {[%clk 0:03:12]}  dxe4 {[%clk 0:03:04]} 9. Be3 {[%clk 0:02:58]}  Be6 {[%clk 0:02:38]}
10. O-O-O {[%clk 0:02:58]}  Nd7 {[%clk 0:02:36]} 11. Bf4 {[%clk 0:02:46]}  g5 {[%clk 0:02:18]} 12. Bxg5 {[%clk 0:02:33]}  Bg7 {[%clk 0:02:19]}
13. Bg2 {[%clk 0:02:23]}  Bf5 {[%clk 0:02:05]} 14. Ne2 {[%clk 0:02:23]}  Nxe5 {[%clk 0:01:57]} 15. Nd4 {[%clk 0:02:10]}  Bg6 {[%clk 0:01:58]}
16. Rhe1 {[%clk 0:01:56]}  f5 {[%clk 0:01:48]} 17. Ne6 {[%clk 0:01:49]}  Kf7 {[%clk 0:01:34]} 18. Nxc7 {[%clk 0:01:43]}  Rac8 {[%clk 0:01:19]}
19. Nb5 {[%clk 0:01:44]}  Rc6 {[%clk 0:00:53]} 20. Bf4 {[%clk 0:01:16]}  Nc4 {[%clk 0:00:45]} 21. Rd7+ {[%clk 0:01:09]}  Kf6 {[%clk 0:00:33]}
22. h4 {[%clk 0:00:51]}  h5 {[%clk 0:00:20]} 23. Bg5+ {[%clk 0:00:52]}  Ke6 {[%clk 0:00:12]} 24. Rxg7 {[%clk 0:00:52]}  Be8 {[%clk 0:00:11]}
25. Nd4+ {[%clk 0:00:52]} 1-0

[Event "2026 Biel Blitz Open"]
[Site "Biel, CH"]
[Date "2026.07.19"]
[Round "7"]
[White "Schweizer, Samuel"]
[Black "Pinelli, Gian"]
[Result "1-0"]
[Board "30"]
[TimeControl "180+2"]
[WhiteFideId "1325353"]
[BlackFideId "1348710"]
[WhiteElo "2006"]
[BlackElo "1751"]
[WhiteClock "0:00:36"]
[BlackClock "0:00:10"]
[Variant "Standard"]
[EndDate "2026.07.19"]
[EndTime "14:05:41"]

1. Nc3 {[%clk 0:03:01]}  d5 {[%clk 0:03:02]} 2. d4 {[%clk 0:03:02]}  Nf6 {[%clk 0:03:01]} 3. Nf3 {[%clk 0:03:00]}  Bf5 {[%clk 0:02:59]}
4. Bf4 {[%clk 0:03:01]}  a6 {[%clk 0:03:00]} 5. e3 {[%clk 0:03:01]}  e6 {[%clk 0:02:57]} 6. h3 {[%clk 0:03:01]}  h6 {[%clk 0:02:58]}
7. Bh2 {[%clk 0:03:02]}  Bd6 {[%clk 0:02:55]} 8. Ne5 {[%clk 0:03:02]}  O-O {[%clk 0:02:39]} 9. g4 {[%clk 0:03:02]}  Bh7 {[%clk 0:02:39]}
10. Bg2 {[%clk 0:02:56]}  c5 {[%clk 0:02:33]} 11. O-O {[%clk 0:02:54]}  cxd4 {[%clk 0:02:34]} 12. exd4 {[%clk 0:02:54]}  Nc6 {[%clk 0:02:34]}
13. Re1 {[%clk 0:02:42]}  Qc7 {[%clk 0:02:16]} 14. Bg3 {[%clk 0:02:31]}  Nd7 {[%clk 0:01:36]} 15. f4 {[%clk 0:02:05]}  Rae8 {[%clk 0:01:58]}
16. Qd2 {[%clk 0:01:48]}  Nb4 {[%clk 0:01:47]} 17. Rac1 {[%clk 0:01:44]}  Nxc2 {[%clk 0:01:43]} 18. Rxc2 {[%clk 0:01:44]}  Bxc2 {[%clk 0:01:43]}
19. Qxc2 {[%clk 0:01:44]}  f6 {[%clk 0:01:43]} 20. Ng6 {[%clk 0:01:40]}  Rf7 {[%clk 0:01:43]} 21. Qd3 {[%clk 0:01:36]}  Nf8 {[%clk 0:01:35]}
22. Nxf8 {[%clk 0:01:35]}  Rfxf8 {[%clk 0:01:34]} 23. Ne2 {[%clk 0:01:26]}  Qb6 {[%clk 0:01:18]} 24. Bf2 {[%clk 0:01:22]}  Re7 {[%clk 0:01:10]}
25. b3 {[%clk 0:01:22]}  Bb4 {[%clk 0:01:09]} 26. Rd1 {[%clk 0:01:21]}  Ref7 {[%clk 0:01:04]} 27. f5 {[%clk 0:01:14]}  Rd7 {[%clk 0:00:44]}
28. Nf4 {[%clk 0:01:09]}  e5 {[%clk 0:00:38]} 29. dxe5 {[%clk 0:01:10]}  Bc5 {[%clk 0:00:37]} 30. Bxc5 {[%clk 0:01:02]}  Qxc5+ {[%clk 0:00:38]}
31. Kh1 {[%clk 0:01:03]}  fxe5 {[%clk 0:00:37]} 32. Ne6 {[%clk 0:00:55]}  Qa5 {[%clk 0:00:33]} 33. Nxf8 {[%clk 0:01:02]}  Kxf8 {[%clk 0:00:34]}
34. Bxd5 {[%clk 0:01:02]}  Qxa2 {[%clk 0:00:34]} 35. Qc3 {[%clk 0:01:00]}  Rd8 {[%clk 0:00:25]} 36. Qc5+ {[%clk 0:01:00]}  Ke8 {[%clk 0:00:23]}
37. Re1 {[%clk 0:00:54]}  Qb2 {[%clk 0:00:20]} 38. Bg2 {[%clk 0:00:47]}  Qxb3 {[%clk 0:00:09]} 39. Rxe5+ {[%clk 0:00:43]}  Kf7 {[%clk 0:00:10]}
40. Bd5+ {[%clk 0:00:41]}  Rxd5 {[%clk 0:00:11]} 41. Qe7+ {[%clk 0:00:33]}  Kg8 {[%clk 0:00:10]} 42. Qe8+ {[%clk 0:00:34]}  Kh7 {[%clk 0:00:10]}
43. Qg6+ {[%clk 0:00:35]}  Kg8 {[%clk 0:00:10]} 44. Re8# {[%clk 0:00:36]} 1-0

[Event "2026 Biel Blitz Open"]
[Site "Biel, CH"]
[Date "2026.07.19"]
[Round "7"]
[White "Vihaan Dumir"]
[Black "Jelicic, Hugo"]
[Result "1-0"]
[Board "32"]
[TimeControl "180+2"]
[WhiteFideId "25901010"]
[BlackFideId "1349040"]
[WhiteElo "1965"]
[BlackElo "1804"]
[WhiteTitle "CM"]
[WhiteClock "0:01:19"]
[BlackClock "0:00:26"]
[Variant "Standard"]
[EndDate "2026.07.19"]
[EndTime "13:56:41"]

1. e4 {[%clk 0:03:04]}  c6 {[%clk 0:03:03]} 2. d4 {[%clk 0:03:04]}  d5 {[%clk 0:03:04]} 3. exd5 {[%clk 0:03:02]}  cxd5 {[%clk 0:03:06]}
4. Bd3 {[%clk 0:03:02]}  Nc6 {[%clk 0:03:07]} 5. c3 {[%clk 0:03:04]}  Nf6 {[%clk 0:03:08]} 6. h3 {[%clk 0:03:05]}  g6 {[%clk 0:03:08]}
7. Nf3 {[%clk 0:03:06]}  Bg7 {[%clk 0:03:10]} 8. O-O {[%clk 0:03:06]}  O-O {[%clk 0:03:10]} 9. Re1 {[%clk 0:03:05]}  Bf5 {[%clk 0:03:11]}
10. Bf1 {[%clk 0:03:06]}  a6 {[%clk 0:03:04]} 11. a4 {[%clk 0:02:58]}  Rc8 {[%clk 0:02:51]} 12. Bf4 {[%clk 0:02:59]}  Na5 {[%clk 0:02:44]}
13. Nbd2 {[%clk 0:03:00]}  Ne4 {[%clk 0:02:23]} 14. g4 {[%clk 0:02:40]}  Nxd2 {[%clk 0:02:23]} 15. Nxd2 {[%clk 0:02:30]}  Be6 {[%clk 0:02:18]}
16. Qf3 {[%clk 0:02:23]}  Qd7 {[%clk 0:02:09]} 17. b4 {[%clk 0:02:18]}  Nc4 {[%clk 0:02:04]} 18. Nxc4 {[%clk 0:02:15]}  dxc4 {[%clk 0:02:05]}
19. Bg2 {[%clk 0:02:15]}  b5 {[%clk 0:01:13]} 20. axb5 {[%clk 0:02:08]}  axb5 {[%clk 0:01:09]} 21. Ra6 {[%clk 0:01:56]}  Rfd8 {[%clk 0:00:56]}
22. Rb6 {[%clk 0:01:45]}  Bd5 {[%clk 0:00:55]} 23. Qxd5 {[%clk 0:01:42]}  Qxd5 {[%clk 0:00:52]} 24. Bxd5 {[%clk 0:01:43]}  Rxd5 {[%clk 0:00:52]}
25. Rxe7 {[%clk 0:01:38]}  Ra8 {[%clk 0:00:44]} 26. Reb7 {[%clk 0:01:26]}  Bxd4 {[%clk 0:00:38]} 27. cxd4 {[%clk 0:01:25]}  Rxd4 {[%clk 0:00:39]}
28. Rb8+ {[%clk 0:01:25]}  Rd8 {[%clk 0:00:37]} 29. Rxa8 {[%clk 0:01:20]}  Rxa8 {[%clk 0:00:38]} 30. Rxb5 {[%clk 0:01:19]}  Ra1+ {[%clk 0:00:31]}
31. Kg2 {[%clk 0:01:20]}  Rb1 {[%clk 0:00:26]} 32. Be5 {[%clk 0:01:19]} 1-0

[Event "2026 Biel Blitz Open"]
[Site "Biel, CH"]
[Date "2026.07.19"]
[Round "7"]
[White "Heitmann, Erik"]
[Black "Kelecevic, Nedeljko"]
[Result "0-1"]
[Board "34"]
[TimeControl "180+2"]
[WhiteFideId "34608940"]
[BlackFideId "14400537"]
[WhiteElo "1885"]
[BlackElo "2150"]
[BlackTitle "IM"]
[WhiteClock "0:00:04"]
[BlackClock "0:01:23"]
[Variant "Standard"]
[EndDate "2026.07.19"]
[EndTime "14:05:50"]

1. d4 {[%clk 0:03:04]}  e6 {[%clk 0:03:02]} 2. c4 {[%clk 0:03:04]}  d5 {[%clk 0:03:03]} 3. Nf3 {[%clk 0:03:03]}  Nf6 {[%clk 0:03:03]}
4. Nc3 {[%clk 0:03:03]}  dxc4 {[%clk 0:03:00]} 5. e3 {[%clk 0:02:59]}  a6 {[%clk 0:03:00]} 6. Bxc4 {[%clk 0:02:59]}  b5 {[%clk 0:03:02]}
7. Be2 {[%clk 0:02:59]}  Bb7 {[%clk 0:03:03]} 8. O-O {[%clk 0:02:55]}  Nbd7 {[%clk 0:03:04]} 9. Qc2 {[%clk 0:02:52]}  c5 {[%clk 0:03:03]}
10. Rd1 {[%clk 0:02:52]}  Rc8 {[%clk 0:03:02]} 11. dxc5 {[%clk 0:02:27]}  Bxc5 {[%clk 0:03:01]} 12. a3 {[%clk 0:02:24]}  Qc7 {[%clk 0:02:53]}
13. Qb3 {[%clk 0:01:33]}  O-O {[%clk 0:02:47]} 14. Nd4 {[%clk 0:01:26]}  Bd6 {[%clk 0:02:40]} 15. h3 {[%clk 0:01:22]}  Bh2+ {[%clk 0:02:30]}
16. Kh1 {[%clk 0:01:17]}  Be5 {[%clk 0:02:31]} 17. Bd2 {[%clk 0:00:54]}  Nc5 {[%clk 0:02:25]} 18. Qc2 {[%clk 0:00:49]}  Bxd4 {[%clk 0:02:25]}
19. exd4 {[%clk 0:00:50]}  Nce4 {[%clk 0:02:24]} 20. Be1 {[%clk 0:00:39]}  Qf4 {[%clk 0:02:15]} 21. Bd3 {[%clk 0:00:14]}  Nxc3 {[%clk 0:02:00]}
22. Bxc3 {[%clk 0:00:15]}  Ne4 {[%clk 0:01:50]} 23. Bxe4 {[%clk 0:00:11]}  Bxe4 {[%clk 0:01:51]} 24. Qe2 {[%clk 0:00:07]}  Bd5 {[%clk 0:01:50]}
25. Qe3 {[%clk 0:00:05]}  Qf5 {[%clk 0:01:50]} 26. Qg3 {[%clk 0:00:04]}  Qh5 {[%clk 0:01:26]} 27. Re1 {[%clk 0:00:05]}  f5 {[%clk 0:01:26]}
28. Re5 {[%clk 0:00:05]}  Rf6 {[%clk 0:01:26]} 29. Rae1 {[%clk 0:00:05]}  Rg6 {[%clk 0:01:27]} 30. Qh2 {[%clk 0:00:03]}  Rxg2 {[%clk 0:01:24]}
31. Qxg2 {[%clk 0:00:04]}  Qxh3+ {[%clk 0:01:23]} 0-1

[Event "2026 Biel Blitz Open"]
[Site "Biel, CH"]
[Date "2026.07.19"]
[Round "7"]
[White "Hirt, Markus"]
[Black "Gireada, Daniel"]
[Result "0-1"]
[Board "35"]
[TimeControl "180+2"]
[WhiteFideId "1302582"]
[BlackFideId "1206451"]
[WhiteElo "1880"]
[BlackElo "2148"]
[WhiteClock "0:00:12"]
[BlackClock "0:00:16"]
[Variant "Standard"]
[EndDate "2026.07.19"]
[EndTime "14:05:13"]

1. e4 {[%clk 0:03:03]}  c6 {[%clk 0:03:02]} 2. Nf3 {[%clk 0:03:02]}  d5 {[%clk 0:03:02]} 3. d3 {[%clk 0:03:01]}  Bg4 {[%clk 0:03:01]}
4. h3 {[%clk 0:03:01]}  Bh5 {[%clk 0:03:01]} 5. Be2 {[%clk 0:02:49]}  e6 {[%clk 0:03:01]} 6. O-O {[%clk 0:02:46]}  Nd7 {[%clk 0:02:52]}
7. Nbd2 {[%clk 0:02:38]}  Bd6 {[%clk 0:02:36]} 8. a4 {[%clk 0:02:32]}  Ngf6 {[%clk 0:02:27]} 9. Re1 {[%clk 0:02:22]}  e5 {[%clk 0:02:18]}
10. a5 {[%clk 0:02:06]}  O-O {[%clk 0:02:17]} 11. c3 {[%clk 0:02:06]}  Re8 {[%clk 0:02:12]} 12. Qc2 {[%clk 0:01:49]}  Rc8 {[%clk 0:02:08]}
13. a6 {[%clk 0:01:44]}  b6 {[%clk 0:02:06]} 14. b3 {[%clk 0:01:28]}  Nc5 {[%clk 0:01:49]} 15. Ba3 {[%clk 0:01:24]}  Bg6 {[%clk 0:01:40]}
16. Bxc5 {[%clk 0:01:11]}  Bxc5 {[%clk 0:01:41]} 17. Rad1 {[%clk 0:00:57]}  Qc7 {[%clk 0:01:37]} 18. b4 {[%clk 0:00:49]}  Bf8 {[%clk 0:01:35]}
19. Bf1 {[%clk 0:00:45]}  Rcd8 {[%clk 0:01:24]} 20. Qb3 {[%clk 0:00:38]}  dxe4 {[%clk 0:01:15]} 21. Nxe4 {[%clk 0:00:35]}  Nxe4 {[%clk 0:01:15]}
22. dxe4 {[%clk 0:00:36]}  Rxd1 {[%clk 0:01:15]} 23. Qxd1 {[%clk 0:00:35]}  Rd8 {[%clk 0:01:14]} 24. Qc2 {[%clk 0:00:34]}  c5 {[%clk 0:01:12]}
25. b5 {[%clk 0:00:34]}  Qd6 {[%clk 0:01:02]} 26. Bc4 {[%clk 0:00:32]}  Kh8 {[%clk 0:00:59]} 27. Bd5 {[%clk 0:00:32]}  f6 {[%clk 0:01:00]}
28. Qe2 {[%clk 0:00:31]}  Be8 {[%clk 0:00:59]} 29. Rd1 {[%clk 0:00:31]}  Qc7 {[%clk 0:00:59]} 30. c4 {[%clk 0:00:30]}  g6 {[%clk 0:00:57]}
31. Rd2 {[%clk 0:00:30]}  Bh6 {[%clk 0:00:57]} 32. Rd1 {[%clk 0:00:32]}  Kg7 {[%clk 0:00:57]} 33. Kf1 {[%clk 0:00:32]}  Bf7 {[%clk 0:00:53]}
34. Kg1 {[%clk 0:00:33]}  Kf8 {[%clk 0:00:48]} 35. Rd3 {[%clk 0:00:32]}  Bxd5 {[%clk 0:00:44]} 36. Rxd5 {[%clk 0:00:33]}  Rxd5 {[%clk 0:00:45]}
37. exd5 {[%clk 0:00:27]}  Ke7 {[%clk 0:00:42]} 38. Qe4 {[%clk 0:00:22]}  Qd7 {[%clk 0:00:40]} 39. Qh4 {[%clk 0:00:21]}  Bf4 {[%clk 0:00:28]}
40. Qxh7+ {[%clk 0:00:20]}  Kd8 {[%clk 0:00:30]} 41. Qxg6 {[%clk 0:00:19]}  Qe7 {[%clk 0:00:28]} 42. Qf5 {[%clk 0:00:15]}  Kc7 {[%clk 0:00:28]}
43. g3 {[%clk 0:00:16]}  Bh6 {[%clk 0:00:23]} 44. Qg6 {[%clk 0:00:16]}  Bc1 {[%clk 0:00:21]} 45. Nh4 {[%clk 0:00:17]}  e4 {[%clk 0:00:19]}
46. Nf5 {[%clk 0:00:15]}  Qe5 {[%clk 0:00:20]} 47. Qf7+ {[%clk 0:00:14]}  Kd8 {[%clk 0:00:20]} 48. Qf8+ {[%clk 0:00:13]}  Kd7 {[%clk 0:00:18]}
49. Qf7+ {[%clk 0:00:14]}  Kd8 {[%clk 0:00:19]} 50. Qf8+ {[%clk 0:00:09]}  Kd7 {[%clk 0:00:20]} 51. Qa8 {[%clk 0:00:06]}  e3 {[%clk 0:00:19]}
52. Qb7+ {[%clk 0:00:07]}  Ke8 {[%clk 0:00:18]} 53. Nxe3 {[%clk 0:00:06]}  Bxe3 {[%clk 0:00:19]} 54. fxe3 {[%clk 0:00:07]}  Qxe3+ {[%clk 0:00:19]}
55. Kg2 {[%clk 0:00:09]}  Qe2+ {[%clk 0:00:20]} 56. Kg1 {[%clk 0:00:10]}  Qxc4 {[%clk 0:00:15]} 57. Qxa7 {[%clk 0:00:10]}  Qd4+ {[%clk 0:00:15]}
58. Kg2 {[%clk 0:00:11]}  Qxd5+ {[%clk 0:00:15]} 59. Kg1 {[%clk 0:00:13]}  Qd4+ {[%clk 0:00:16]} 60. Kg2 {[%clk 0:00:14]}  Qb2+ {[%clk 0:00:17]}
61. Kf3 {[%clk 0:00:15]}  Qxb5 {[%clk 0:00:16]} 62. Qb8+ {[%clk 0:00:16]}  Ke7 {[%clk 0:00:17]} 63. a7 {[%clk 0:00:17]}  Qc6+ {[%clk 0:00:18]}
64. Kg4 {[%clk 0:00:18]}  Qe4+ {[%clk 0:00:15]} 65. Kh5 {[%clk 0:00:18]}  Qf5+ {[%clk 0:00:14]} 66. Kh4 {[%clk 0:00:16]}  Qg5# {[%clk 0:00:12]} 0-1

[Event "2026 Biel Blitz Open"]
[Site "Biel, CH"]
[Date "2026.07.19"]
[Round "7"]
[White "Aryan Mehta"]
[Black "King, Alexander"]
[Result "0-1"]
[Board "36"]
[TimeControl "180+2"]
[WhiteFideId "33329664"]
[BlackFideId "1352334"]
[WhiteElo "2061"]
[BlackElo "1854"]
[WhiteClock "0:00:02"]
[BlackClock "0:00:14"]
[Variant "Standard"]
[EndDate "2026.07.19"]
[EndTime "14:02:16"]

1. d4 {[%clk 0:03:03]}  b6 {[%clk 0:03:03]} 2. Nf3 {[%clk 0:03:04]}  Bb7 {[%clk 0:03:04]} 3. g3 {[%clk 0:03:05]}  e6 {[%clk 0:03:05]}
4. c4 {[%clk 0:03:05]}  f5 {[%clk 0:03:06]} 5. Bg2 {[%clk 0:03:05]}  Bb4+ {[%clk 0:03:06]} 6. Bd2 {[%clk 0:03:05]}  Bxd2+ {[%clk 0:03:06]}
7. Qxd2 {[%clk 0:03:06]}  Nf6 {[%clk 0:03:07]} 8. Nc3 {[%clk 0:03:07]}  O-O {[%clk 0:03:06]} 9. O-O {[%clk 0:03:07]}  d6 {[%clk 0:03:07]}
10. Rfe1 {[%clk 0:02:45]}  Qe7 {[%clk 0:02:29]} 11. Nh4 {[%clk 0:02:40]}  Bxg2 {[%clk 0:02:27]} 12. Kxg2 {[%clk 0:02:36]}  Nbd7 {[%clk 0:01:55]}
13. d5 {[%clk 0:02:05]}  Ne4 {[%clk 0:01:05]} 14. Nxe4 {[%clk 0:01:35]}  fxe4 {[%clk 0:01:05]} 15. Kg1 {[%clk 0:01:29]}  Qf6 {[%clk 0:00:45]}
16. Rf1 {[%clk 0:01:18]}  Rae8 {[%clk 0:00:33]} 17. Ng2 {[%clk 0:01:10]}  Ne5 {[%clk 0:00:22]} 18. Qc2 {[%clk 0:01:11]}  exd5 {[%clk 0:00:04]}
19. cxd5 {[%clk 0:01:11]}  Ng4 {[%clk 0:00:05]} 20. e3 {[%clk 0:00:13]}  Qh6 {[%clk 0:00:03]} 21. h4 {[%clk 0:00:14]}  Ne5 {[%clk 0:00:07]}
22. Qxc7 {[%clk 0:00:07]}  Nf3+ {[%clk 0:00:07]} 23. Kh1 {[%clk 0:00:08]}  g5 {[%clk 0:00:07]} 24. Qd7 {[%clk 0:00:08]}  gxh4 {[%clk 0:00:08]}
25. Qg4+ {[%clk 0:00:08]}  Kh8 {[%clk 0:00:08]} 26. Nxh4 {[%clk 0:00:03]}  Rg8 {[%clk 0:00:08]} 27. Qh3 {[%clk 0:00:06]}  Ng5 {[%clk 0:00:09]}
28. Qg2 {[%clk 0:00:06]}  Nf3 {[%clk 0:00:09]} 29. Qh3 {[%clk 0:00:07]}  Ng5 {[%clk 0:00:10]} 30. Qg2 {[%clk 0:00:04]}  Nf3 {[%clk 0:00:11]}
31. Qh3 {[%clk 0:00:06]}  Ng5 {[%clk 0:00:12]} 32. Qg4 {[%clk 0:00:04]}  Nf3 {[%clk 0:00:13]} 33. Qh3 {[%clk 0:00:04]}  Ng5 {[%clk 0:00:14]}
34. Qf5 {[%clk 0:00:03]}  Ref8 {[%clk 0:00:13]} 35. Qg4 {[%clk 0:00:00]}  Nf3 {[%clk 0:00:14]} 0-1

[Event "2026 Biel Blitz Open"]
[Site "Biel, CH"]
[Date "2026.07.19"]
[Round "7"]
[White "Bajraktari, Perparim"]
[Black "Freuler, Roman"]
[Result "1-0"]
[Board "37"]
[TimeControl "180+2"]
[WhiteFideId "1307711"]
[BlackFideId "1304283"]
[WhiteElo "2045"]
[BlackElo "1852"]
[WhiteClock "0:00:52"]
[BlackClock "0:03:02"]
[Variant "Standard"]
[EndDate "2026.07.19"]
[EndTime "14:02:33"]

1. c4 {[%clk 0:03:02]}  e5 {[%clk 0:03:03]} 2. Nc3 {[%clk 0:03:03]}  Nc6 {[%clk 0:03:04]} 3. g3 {[%clk 0:03:05]}  g6 {[%clk 0:03:04]}
4. Bg2 {[%clk 0:03:06]}  Bg7 {[%clk 0:03:06]} 5. d3 {[%clk 0:03:07]}  d6 {[%clk 0:03:07]} 6. Rb1 {[%clk 0:03:08]}  Nf6 {[%clk 0:03:06]}
7. b4 {[%clk 0:03:09]}  O-O {[%clk 0:03:02]} 8. Nf3 {[%clk 0:03:10]}  Be6 {[%clk 0:02:57]} 9. Ng5 {[%clk 0:03:09]}  Bc8 {[%clk 0:02:58]}
10. a4 {[%clk 0:03:10]}  h6 {[%clk 0:02:59]} 11. Nf3 {[%clk 0:03:11]}  Be6 {[%clk 0:03:00]} 12. a5 {[%clk 0:03:12]}  Qd7 {[%clk 0:02:58]}
13. a6 {[%clk 0:03:07]}  b6 {[%clk 0:02:52]} 14. O-O {[%clk 0:02:55]}  Rae8 {[%clk 0:02:53]} 15. Nb5 {[%clk 0:02:54]}  Re7 {[%clk 0:01:56]}
16. Bb2 {[%clk 0:02:38]}  Bh3 {[%clk 0:01:56]} 17. Bc3 {[%clk 0:02:24]}  Bxg2 {[%clk 0:01:38]} 18. Kxg2 {[%clk 0:02:25]}  Nh7 {[%clk 0:01:39]}
19. Bd2 {[%clk 0:01:58]}  f5 {[%clk 0:01:39]} 20. Nc3 {[%clk 0:01:55]}  e4 {[%clk 0:01:23]} 21. Ne1 {[%clk 0:01:54]}  Ng5 {[%clk 0:01:16]}
22. Nd5 {[%clk 0:01:48]}  Ref7 {[%clk 0:01:16]} 23. Nf4 {[%clk 0:01:42]}  Ne5 {[%clk 0:00:44]} 24. Bc3 {[%clk 0:01:38]}  exd3 {[%clk 0:00:37]}
25. exd3 {[%clk 0:01:38]}  Ne6 {[%clk 0:00:30]} 26. Bxe5 {[%clk 0:01:37]}  dxe5 {[%clk 0:00:14]} 27. Nxg6 {[%clk 0:01:38]}  Rd8 {[%clk 0:00:15]}
28. Nf3 {[%clk 0:01:21]}  Qxd3 {[%clk 0:00:09]} 29. Qxd3 {[%clk 0:01:17]}  Rxd3 {[%clk 0:00:09]} 30. Nfxe5 {[%clk 0:01:17]}  Rfd7 {[%clk 0:00:04]}
31. Nxd7 {[%clk 0:01:17]}  Rxd7 {[%clk 0:00:05]} 32. Rbd1 {[%clk 0:01:17]}  Rf7 {[%clk 0:00:05]} 33. Rfe1 {[%clk 0:01:14]}  Nd4 {[%clk 0:00:05]}
34. h4 {[%clk 0:01:09]}  Kh7 {[%clk 0:00:06]} 35. h5 {[%clk 0:01:10]}  f4 {[%clk 0:00:05]} 36. Nxf4 {[%clk 0:01:09]}  Nf5 {[%clk 0:00:05]}
37. Rd5 {[%clk 0:00:59]}  Nd6 {[%clk 0:00:05]} 38. c5 {[%clk 0:00:52]}  Nf5 {[%clk 0:00:00]} 1-0

[Event "2026 Biel Blitz Open"]
[Site "Biel, CH"]
[Date "2026.07.19"]
[Round "7"]
[White "Berezovskii, Arina"]
[Black "Dietiker, Manuel"]
[Result "0-1"]
[Board "38"]
[TimeControl "180+2"]
[WhiteFideId "34449850"]
[BlackFideId "1317377"]
[WhiteElo "1851"]
[BlackElo "2002"]
[WhiteTitle "WCM"]
[WhiteClock "0:00:03"]
[BlackClock "0:01:13"]
[Variant "Standard"]
[EndDate "2026.07.19"]
[EndTime "14:02:28"]

1. e4 {[%clk 0:03:03]}  c5 {[%clk 0:03:02]} 2. Nf3 {[%clk 0:03:01]}  e6 {[%clk 0:03:03]} 3. c3 {[%clk 0:03:02]}  Nf6 {[%clk 0:03:04]}
4. e5 {[%clk 0:03:03]}  Nd5 {[%clk 0:03:05]} 5. d4 {[%clk 0:03:04]}  cxd4 {[%clk 0:03:05]} 6. cxd4 {[%clk 0:03:06]}  Nc6 {[%clk 0:03:06]}
7. Nc3 {[%clk 0:03:05]}  Nxc3 {[%clk 0:03:07]} 8. bxc3 {[%clk 0:03:05]}  d5 {[%clk 0:03:08]} 9. exd6 {[%clk 0:02:57]}  Bxd6 {[%clk 0:03:08]}
10. Bb5 {[%clk 0:02:54]}  O-O {[%clk 0:03:07]} 11. O-O {[%clk 0:02:52]}  Qc7 {[%clk 0:02:59]} 12. Re1 {[%clk 0:02:38]}  a6 {[%clk 0:02:53]}
13. Ba4 {[%clk 0:02:26]}  Ne7 {[%clk 0:02:47]} 14. Qd3 {[%clk 0:02:15]}  b5 {[%clk 0:02:36]} 15. Bc2 {[%clk 0:02:11]}  Ng6 {[%clk 0:02:36]}
16. Ne5 {[%clk 0:02:04]}  Bxe5 {[%clk 0:02:32]} 17. Rxe5 {[%clk 0:02:00]}  Bb7 {[%clk 0:02:30]} 18. h4 {[%clk 0:01:46]}  Rfd8 {[%clk 0:02:26]}
19. h5 {[%clk 0:01:38]}  Qxe5 {[%clk 0:02:26]} 20. hxg6 {[%clk 0:01:10]}  Qd5 {[%clk 0:02:18]} 21. gxf7+ {[%clk 0:00:50]}  Kxf7 {[%clk 0:02:12]}
22. f3 {[%clk 0:00:44]}  g6 {[%clk 0:02:02]} 23. Ba3 {[%clk 0:00:36]}  Rac8 {[%clk 0:01:59]} 24. Re1 {[%clk 0:00:30]}  Qc4 {[%clk 0:01:35]}
25. Qe3 {[%clk 0:00:26]}  Bd5 {[%clk 0:01:36]} 26. Qg5 {[%clk 0:00:17]}  Qxc3 {[%clk 0:01:27]} 27. Qe7+ {[%clk 0:00:16]}  Kg8 {[%clk 0:01:28]}
28. Rxe6 {[%clk 0:00:09]}  Qxd4+ {[%clk 0:01:13]} 29. Re3 {[%clk 0:00:05]}  Re8 {[%clk 0:01:11]} 30. Qg5 {[%clk 0:00:03]}  Qxe3+ {[%clk 0:01:11]}
31. Qxe3 {[%clk 0:00:03]}  Rxe3 {[%clk 0:01:12]} 32. Bb3 {[%clk 0:00:03]}  Bxb3 {[%clk 0:01:13]} 0-1

[Event "2026 Biel Blitz Open"]
[Site "Biel, CH"]
[Date "2026.07.19"]
[Round "7"]
[White "Altenburger, Rene"]
[Black "Damen, Josephine"]
[Result "0-1"]
[Board "39"]
[TimeControl "180+2"]
[WhiteFideId "1305581"]
[BlackFideId "1074369"]
[WhiteElo "1990"]
[BlackElo "1766"]
[BlackTitle "WCM"]
[WhiteClock "0:00:27"]
[BlackClock "0:00:22"]
[Variant "Standard"]
[EndDate "2026.07.19"]
[EndTime "14:04:19"]

1. d4 {[%clk 0:03:02]}  Nf6 {[%clk 0:03:03]} 2. c4 {[%clk 0:03:01]}  g6 {[%clk 0:03:04]} 3. Nc3 {[%clk 0:03:02]}  Bg7 {[%clk 0:03:06]}
4. Bg5 {[%clk 0:02:59]}  d6 {[%clk 0:03:05]} 5. e3 {[%clk 0:02:58]}  O-O {[%clk 0:03:04]} 6. Bxf6 {[%clk 0:02:54]}  Bxf6 {[%clk 0:03:03]}
7. Nf3 {[%clk 0:02:53]}  Nd7 {[%clk 0:02:55]} 8. Be2 {[%clk 0:02:51]}  e5 {[%clk 0:02:50]} 9. O-O {[%clk 0:02:51]}  Qe8 {[%clk 0:02:41]}
10. Nd5 {[%clk 0:02:45]}  Qd8 {[%clk 0:02:36]} 11. Nxf6+ {[%clk 0:02:40]}  Qxf6 {[%clk 0:02:37]} 12. dxe5 {[%clk 0:02:12]}  dxe5 {[%clk 0:02:32]}
13. b4 {[%clk 0:01:52]}  a5 {[%clk 0:02:02]} 14. a3 {[%clk 0:01:50]}  Rd8 {[%clk 0:01:37]} 15. Qc2 {[%clk 0:01:38]}  Nb6 {[%clk 0:01:24]}
16. Rfd1 {[%clk 0:01:06]}  Rxd1+ {[%clk 0:01:07]} 17. Rxd1 {[%clk 0:01:05]}  axb4 {[%clk 0:01:04]} 18. axb4 {[%clk 0:01:06]}  Be6 {[%clk 0:00:59]}
19. Qc3 {[%clk 0:00:51]}  Ra2 {[%clk 0:00:20]} 20. Bf1 {[%clk 0:00:26]}  Bg4 {[%clk 0:00:20]} 21. Qxe5 {[%clk 0:00:22]}  Qxe5 {[%clk 0:00:20]}
22. Nxe5 {[%clk 0:00:22]}  Bxd1 {[%clk 0:00:21]} 23. g3 {[%clk 0:00:17]}  Ra1 {[%clk 0:00:20]} 24. Kg2 {[%clk 0:00:18]}  Bb3 {[%clk 0:00:17]}
25. Bd3 {[%clk 0:00:17]}  Ra8 {[%clk 0:00:14]} 26. Kf3 {[%clk 0:00:16]}  Rd8 {[%clk 0:00:10]} 27. Ke2 {[%clk 0:00:17]}  f6 {[%clk 0:00:10]}
28. Ng4 {[%clk 0:00:17]}  Kf7 {[%clk 0:00:10]} 29. c5 {[%clk 0:00:17]}  Bc4 {[%clk 0:00:09]} 30. cxb6 {[%clk 0:00:14]}  Bxd3+ {[%clk 0:00:10]}
31. Ke1 {[%clk 0:00:14]}  Bf5 {[%clk 0:00:10]} 32. bxc7 {[%clk 0:00:15]}  Rc8 {[%clk 0:00:11]} 33. f3 {[%clk 0:00:13]}  Bxg4 {[%clk 0:00:11]}
34. fxg4 {[%clk 0:00:14]}  Rxc7 {[%clk 0:00:12]} 35. Kd2 {[%clk 0:00:16]}  Ke6 {[%clk 0:00:13]} 36. Kd3 {[%clk 0:00:17]}  Kd5 {[%clk 0:00:14]}
37. e4+ {[%clk 0:00:18]}  Ke5 {[%clk 0:00:15]} 38. h4 {[%clk 0:00:19]}  Rd7+ {[%clk 0:00:16]} 39. Ke3 {[%clk 0:00:20]}  Rd1 {[%clk 0:00:17]}
40. Ke2 {[%clk 0:00:21]}  Rb1 {[%clk 0:00:18]} 41. h5 {[%clk 0:00:22]}  Rxb4 {[%clk 0:00:18]} 42. g5 {[%clk 0:00:23]}  fxg5 {[%clk 0:00:19]}
43. Kf3 {[%clk 0:00:25]}  Rb3+ {[%clk 0:00:19]} 44. Kg4 {[%clk 0:00:26]}  gxh5+ {[%clk 0:00:20]} 45. Kxg5 {[%clk 0:00:27]}  Kxe4 {[%clk 0:00:21]}
46. Kxh5 {[%clk 0:00:27]}  Rxg3 {[%clk 0:00:22]} 0-1